[Event "US Masters 2022"]
[Site "Charlotte"]
[Date "2022.11.25"]
[Round "4.22"]
[White "Antipov, Mikhail Al."]
[Black "Narayanan, Samrug"]
[Result "1-0"]
[ECO "C65"]
[WhiteElo "2608"]
[BlackElo "2340"]
[Annotator "TA"]
[PlyCount "143"]
[EventDate "2022.11.23"]
[EventType "swiss"]
[EventCountry "USA"]
[SourceTitle "playchess.com"]
[Source "ChessBase"]
[SourceQuality "1"]
[TimeControl "5400+30"]

{[%evp 9,143,18,16,18,19,4,12,0,0,0,0,0,0,0,16,8,0,0,27,32,25,19,8,10,13,6,20,18,19,19,22,20,20,21,23,14,23,10,11,11,11,18,18,11,0,0,8,0,0,0,0,0,0,0,0,0,12,0,11,0,17,11,14,0,0,0,0,0,0,-28,0,0,0,0,0,0,29,31,31,31,31,0,0,0,0,0,0,0,0,0,0,0,0,0,0,0,0,0,0,0,0,0,0,0,0,0,0,0,0,0,0,0,77,80,89,77,109,98,200,211,196,204,406,405,634,627,619,598,577,574,575,567,554,537,430,391]} 1. e4 {[%emt 0:03:12]} e5 {[%emt 0:00:03]} 2. Nf3 {[%emt 0:00:07]} Nc6 {[%emt 0:00:04]} 3. Bb5 {[%emt 0:00:46]} Nf6 {[%emt 0:00:04]} 4. d3 {[%emt 0:01:32]} Bc5 {[%emt 0:00:07]} 5. Bxc6 {[%emt 0:00:32]} dxc6 {[%emt 0:00:04]} 6. Nbd2 {[%emt 0:00:36] C65: Ruy Lopez: Berlin Defence (3...Nf6), unusual lines and 4 0-0 Bc5.} Be6 {[%emt 0:00:16]} 7. Qe2 {[%emt 0:03:03]} Nd7 {[%emt 0:02:33]} 8. Nb3 {[%emt 0:02:04] The position is equal.} Bb6 {[%emt 0:02:09]} 9. Ng5 {[%emt 0:02:52]} Bxb3 {[%emt 0:01:15]} 10. axb3 {[%emt 0:00:02]} f6 {[%emt 0:02:54]} 11. Nf3 {[%emt 0:01:14][%cal Bg5f3,Bf3d2,Bd2c4,Bc4a5][%mdl 32]} ({Much weaker is} 11. Ne6 Qe7 12. Qg4 g6 $15) 11... Nf8 {[%emt 0:01:19] [#]} 12. Nd2 $146 {[%emt 0:03:21]} ({Predecessor:} 12. O-O Ne6 13. Be3 Qd7 14. b4 a6 15. Nd2 O-O-O 16. Nc4 Bd4 17. Rfd1 Kb8 18. c3 Bxe3 19. Qxe3 {0-1 (50) Caruana,F (2835)-Grischuk,A (2777) Chess.com INT 2020}) 12... Ne6 {[%emt 0:09:22]} 13. Nc4 {[%emt 0:00:08]} Bc5 {[%emt 0:00:14]} 14. O-O {[%emt 0:01:11]} O-O {[%emt 0:01:05]} 15. Bd2 {[%emt 0:09:53]} Qd7 {[%emt 0:04:24]} 16. b4 {[%emt 0:00:13]} Be7 {[%emt 0:00:22]} 17. Na5 {[%emt 0:00:57]} Rab8 {[%emt 0:01:17]} 18. Nb3 {[%emt 0:01:21]} a6 {[%emt 0:03:57]} 19. Ra5 {[%emt 0:03:55]} Rbd8 {[%emt 0:05:44]} 20. g3 {[%emt 0:01:22]} Nd4 {[%emt 0:04:45]} 21. Nxd4 {[%emt 0:00:55]} Qxd4 {[%emt 0:00:08]} 22. Bc3 {[%emt 0:00:09]} Qb6 {[%emt 0:00:08]} 23. Qd2 {[%emt 0:04:37]} c5 {[%emt 0:01:55]} 24. bxc5 {[%emt 0:00:04]} Bxc5 {[%emt 0:00:06]} 25. Kg2 {[%emt 0:01:37]} Qc6 {[%emt 0:04:34]} 26. Qe2 {[%emt 0:05:21]} Bb6 {[%emt 0:04:46]} 27. Raa1 {[%emt 0:00:06]} Bd4 {[%emt 0:00:12]} 28. Bxd4 {[%emt 0:01:10]} Rxd4 {[%emt 0:00:07]} 29. f4 {[%emt 0:02:43]} exf4 {[%emt 0:01:07]} 30. Rxf4 {[%emt 0:00:06]} Re8 {[%emt 0:09:25]} 31. Raf1 {[%emt 0:01:48]} Rd6 {[%emt 0:00:49]} 32. R1f2 {[%emt 0:01:27]} Qd7 {[%emt 0:04:26]} 33. Qh5 {[%emt 0:03:38]} Qf7 {[%emt 0:03:33]} 34. Qg4 {[%emt 0:00:24]} Qg6 {[%emt 0:01:23]} 35. Qh3 {[%emt 0:03:12]} Rde6 {[%emt 0:06:31]} 36. Rg4 {[%emt 0:00:32]} Qf7 {[%emt 0:00:22]} 37. Rh4 {[%emt 0:00:21]} h6 {[%emt 0:01:56]} 38. Rh5 {[%emt 0:04:27]} c6 {[%emt 0:02:26]} 39. Rff5 {[%emt 0:04:42]} Re5 {[%emt 0:03:25]} 40. Rxe5 {[%emt 0:00:20]} fxe5 $11 {[%emt 0:00:10][%mdl 4096] Endgame KQR-KQR} 41. Qg4 {[%emt 0:01:30]} Rf8 {[%emt 0:03:10][%csl Gf8][%cal Rf7f1] [#]} 42. Rf5 {[%emt 0:00:17] Inhibits Qf1+. Active counter play!} (42. Rxe5 $2 Qf1#) 42... Qe7 {[%emt 0:00:26]} 43. Rxf8+ {[%emt 0:00:51]} Kxf8 {[%emt 0:00:06] KQ-KQ} 44. Qc8+ {[%emt 0:02:58]} Kf7 {[%emt 0:00:08]} 45. h4 {[%emt 0:02:12]} g6 {[%emt 0:03:40]} 46. Kf3 {[%emt 0:04:34]} h5 {[%emt 0:00:41]} 47. Ke2 {[%emt 0:01:32]} Qb4 {[%emt 0:02:04]} 48. b3 {[%emt 0:01:18]} a5 {[%emt 0:03:13]} 49. Kd1 {[%emt 0:01:01]} Qe7 {[%emt 0:00:56]} 50. Kc1 {[%emt 0:01:08]} Qb4 {[%emt 0:00:22]} 51. Qc7+ {[%emt 0:12:38]} Kf6 {[%emt 0:01:34]} 52. Kd1 {[%emt 0:00:02]} a4 {[%emt 0:04:55]} 53. bxa4 {[%emt 0:02:16]} Qb1+ {[%emt 0:00:03]} 54. Kd2 {[%emt 0:00:05]} Qb4+ {[%emt 0:00:07]} 55. Ke2 {[%emt 0:00:47]} Qxa4 {[%emt 0:00:50]} 56. Kd1 {[%emt 0:00:52] Strongly threatening Qd6+.} Qb4 {[%emt 0:01:43] Prevents Qd6+.} 57. Qd8+ {[%emt 0:00:10]} Kf7 {[%emt 0:00:16]} 58. Qd7+ {[%emt 0:00:48]} Qe7 {[%emt 0:00:40]} 59. Qc8 {[%emt 0:00:10]} Qb4 {[%emt 0:00:05]} 60. Ke2 {[%emt 0:00:11]} Qb2 {[%emt 0:02:19]} (60... Kg7 $11) 61. Qd7+ $16 {[%emt 0:00:04]} Kf6 {[%emt 0:00:09]} 62. Qd6+ {[%emt 0:00:04]} Kf7 {[%emt 0:00:03]} 63. Kd2 {[%emt 0:00:05]} Kg7 {[%emt 0:00:32]} (63... Qb5 $16) 64. Qe7+ $18 {[%emt 0:00:10]} Kg8 {[%emt 0:00:05]} 65. Qf6 {[%emt 0:00:44]} Kh7 $2 {[%emt 0:00:39]} (65... Qb4+ {was worth a try.} 66. Ke2 Qc3) 66. Qf7+ {[%emt 0:00:17]} Kh6 {[%emt 0:01:24] [#]} (66... Kh8 $142 67. Qxg6 Qb4+ 68. Ke2 Qc3 69. Qxh5+ Kg8 70. Qg6+ Kf8 71. Qd6+ Kf7 72. Qd7+ Kf6) 67. Qg8 $1 {[%emt 0:00:06][%cal Rg8h8] White is clearly winning.} Qb4+ {[%emt 0:00:03]} 68. Ke2 {[%emt 0:00:07][%cal Rg8h8]} Qe7 {[%emt 0:00:09]} 69. Qh8+ {[%emt 0:00:05]} Qh7 {[%emt 0:00:02]} 70. Qxe5 {[%emt 0:00:07]} Qg8 {[%emt 0:00:16]} 71. Qg5+ {[%emt 0:00:21]} Kh7 {[%emt 0:00:03]} 72. Qe7+ {[%emt 0:00:04] Weighted Error Value: White=0.03 (flawless) /Black=0.06 (flawless)} 1-0

[Event "US Masters 2022"]
[Site "Charlotte"]
[Date "2022.11.25"]
[Round "4.23"]
[White "Canty, James"]
[Black "Ozenir, Ekin Baris"]
[Result "1/2-1/2"]
[ECO "C13"]
[WhiteElo "2158"]
[BlackElo "2352"]
[Annotator "TA"]
[PlyCount "50"]
[EventDate "2022.11.23"]
[EventType "swiss"]
[EventCountry "USA"]
[SourceTitle "playchess.com"]
[Source "ChessBase"]
[SourceQuality "1"]
[TimeControl "5400+30"]

{[%evp 14,50,25,13,34,22,20,0,4,0,0,0,0,0,0,0,0,0,0,0,0,0,0,0,0,0,0,0,14,16,14,0,0,0,93,50,49,46,43]} 1. e4 {[%emt 0:14:32]} e6 {[%emt 0:01:39]} 2. d4 {[%emt 0:00:04]} d5 {[%emt 0:00:12]} 3. Nc3 {[%emt 0:00:03]} Nf6 {[%emt 0:00:17]} 4. Bg5 {[%emt 0:00:04]} dxe4 {[%emt 0:00:28]} 5. Nxe4 {[%emt 0:00:03]} Be7 {[%emt 0:00:04]} 6. Bxf6 {[%emt 0:00:04]} gxf6 {[%emt 0:00:05]} 7. Nf3 {[%emt 0:00:05]} f5 {[%emt 0:02:03]} 8. Nc3 {[%emt 0:00:05]} a6 {[%emt 0:00:42] C13: French: Classical System: 4 Bg5 Be7, Alekhine-Chatard Attack.} 9. Qe2 {[%emt 0:00:04]} b5 {[%emt 0:03:06]} 10. O-O-O {[%emt 0:00:28] next Ne5 is good for White.} b4 $1 {[%emt 0:02:00] The position is equal.} 11. Na4 {[%emt 0:00:04]} Qd5 {[%emt 0:02:39]} 12. c4 {[%emt 0:00:13]} Qa5 {[%emt 0:06:48]} 13. b3 {[%emt 0:00:18]} Bd7 $1 {[%emt 0:02:29]} 14. d5 {[%emt 0:07:55]} Bxa4 {[%emt 0:06:23]} 15. bxa4 {[%emt 0:00:06]} Qxa4 {[%emt 0:11:00]} 16. dxe6 {[%emt 0:00:05]} b3 {[%emt 0:04:07]} 17. exf7+ $1 {[%emt 0:00:04]} (17. Qb2 $2 Ba3 18. axb3 Qxb3 $19) 17... Kxf7 {[%emt 0:01:10]} 18. c5 {[%emt 0:00:05] [#] Threatens to win with Qc4+.} Qa3+ $146 {[%emt 0:07:47]} (18... Bxc5 19. Ng5+ Kf8 20. Rd8+ Kg7 21. Qe5+ Kg6 22. Qe6+ Kh5 23. Be2+ (23. Rxh8 b2+ 24. Kxb2 Bd4+ 25. Kc1 Qa3+ 26. Kd1 Qa4+ 27. Qb3 Qxb3+ 28. axb3 Bxh8 $14) (23. Rxh8 b2+ 24. Kxb2 Bd4+ 25. Kc1 Qa3+ 26. Kd1 Qa4+ 27. Qb3 Qxb3+ 28. axb3 Bxh8 $16)) (18... Qxa2 19. Qxa2 bxa2 20. Bc4+ Kf6 21. Bxa2 $16) ({Predecessor:} 18... bxa2 19. Qc4+ Qxc4+ 20. Bxc4+ Kg7 21. Bxa2 Bxc5 22. Rhe1 Rf8 23. Ng5 Ba3+ 24. Kc2 Nc6 {1-0 (35) Duda,J (2750)-Gavrilescu,D (2518) Warsaw 2022}) 19. Qb2 {[%emt 0:40:16]} Qxc5+ {[%emt 0:05:05]} (19... Qxb2+ 20. Kxb2 Bf6+ 21. Kxb3 $16) 20. Kb1 {[%emt 0:00:06] [#] Strongly threatening Bc4+. Really sharp!} Bf6 {[%emt 0:14:45]} 21. Qxb3+ {[%emt 0:08:48]} Kg7 $1 {[%emt 0:04:31] White must now prevent ...Nc6.} 22. Rd5 {[%emt 0:00:42]} Qxf2 {[%emt 0:03:39] aiming for ...Nc6.} 23. Bc4 {[%emt 0:00:12]} (23. Rxf5 $2 Nd7 24. Rxf6 (24. Kc1 $2 Rab8 $19) 24... Nxf6 $19) 23... Qb6 {[%emt 0:10:46]} (23... Qxg2 $2 24. Rg1 $18) (23... Nc6 $11 {remains equal.} 24. Rd7+ (24. Rxf5 $2 {too greedy.} Rhb8 $19) 24... Ne7) 24. Qxb6 {[%emt 0:02:12] White is more active.} cxb6 {[%emt 0:00:02]} 25. Rxf5 {[%emt 0:00:12]} Nc6 {[%emt 0:11:13] Weighted Error Value: White=0.05 (flawless) /Black=0.09 (flawless)} 1/2-1/2

[Event "US Masters 2022"]
[Site "Charlotte"]
[Date "2022.11.25"]
[Round "4.24"]
[White "Chiku-Ratte, Olivier-Kenta"]
[Black "Theodorou, Nikolas"]
[Result "0-1"]
[ECO "E24"]
[WhiteElo "2344"]
[BlackElo "2598"]
[Annotator "TA"]
[PlyCount "74"]
[EventDate "2022.11.23"]
[EventType "swiss"]
[EventCountry "USA"]
[SourceTitle "playchess.com"]
[Source "ChessBase"]
[SourceQuality "1"]
[TimeControl "5400+30"]

{[%evp 13,74,-30,-38,-41,0,4,0,-48,-50,-33,-25,-62,-54,-47,-45,-59,-39,-32,-39,-38,-7,-34,-18,-39,-53,-70,-39,-28,0,0,0,0,68,25,14,0,0,0,0,0,0,0,58,21,23,21,21,0,0,0,0,0,0,0,0,0,0,-24,-28,-29995,0,0,0]} 1. d4 {[%emt 0:04:47]} Nf6 {[%emt 0:04:58]} 2. c4 {[%emt 0:00:33]} e6 {[%emt 0:00:05]} 3. Nc3 {[%emt 0:04:03]} Bb4 {[%emt 0:00:06]} 4. a3 {[%emt 0:00:04]} Bxc3+ {[%emt 0:00:08]} 5. bxc3 {[%emt 0:00:05]} c5 {[%emt 0:02:28]} 6. f3 {[%emt 0:02:38][%cal Bf2f3,Bf3f4][%mdl 32]} Nc6 {[%emt 0:00:10] now supersedes 6...d5.} 7. e4 {[%emt 0:04:09]} d6 {[%emt 0:00:12]} 8. d5 {[%emt 0:04:24] E24: Nimzo-Indian: Sämisch: Unusual Black 5th moves and 5...c5 sidelines.} Ne5 {[%emt 0:03:45]} (8... Na5 $5 {[%cal Re8g8]}) 9. f4 {[%emt 0:08:12]} Ng6 {[%emt 0:01:39] Pair of Knights!} 10. Bd3 {[%emt 0:04:10]} (10. dxe6 $11 Nxe4 11. Bd3 (11. exf7+ Kf8 $15)) 10... exd5 $15 {[%emt 0:06:35] [#]} 11. exd5 $146 {[%emt 0:13:54]} ({Predecessor:} 11. cxd5 O-O 12. Ne2 Bg4 13. O-O Re8 14. h3 Bxe2 15. Qxe2 Nxe4 16. f5 Nf6 17. Qf2 Ne5 18. Bb5 Nfd7 19. Bf4 f6 20. Rab1 {½-½ (20) Sagalchik,G (2491)-Dorin,M (2395) Buenos Aires 2003}) 11... O-O {[%emt 0:00:24] Strongly threatening ...Nh4.} (11... Bg4 {seems wilder.} 12. Ne2 Nh5 13. O-O O-O) 12. Ne2 $1 {[%emt 0:02:29]} Re8 {[%emt 0:21:37][%cal Ob7b5]} (12... Bg4 $5 {[%cal Rg4e2]}) 13. O-O {[%emt 0:04:49]} Bg4 {[%emt 0:00:21]} 14. Qc2 {[%emt 0:03:33]} b5 {[%emt 0:19:58]} (14... Nh5 {looks sharper.} 15. Ra2 Qe7 16. Rf2 Qh4) 15. Ng3 {[%emt 0:10:50]} bxc4 {[%emt 0:00:06]} 16. Bxc4 {[%emt 0:00:03]} Qa5 {[%emt 0:00:53]} 17. h3 {[%emt 0:13:11]} Bd7 {[%emt 0:00:42]} 18. Kh2 {[%emt 0:02:55]} Rab8 {[%emt 0:01:18]} 19. a4 {[%emt 0:10:05]} h5 {[%emt 0:02:31][%cal Bh7h5,Bh5h4][%mdl 32] Black is much more active.} 20. Bd3 $1 {[%emt 0:01:46]} h4 {[%emt 0:01:43] Prevents c4.} 21. Ne4 {[%emt 0:00:33]} Nxe4 {[%emt 0:08:12]} (21... Nxd5 22. Nxd6 Qxc3 23. Qxc3 Nxc3 24. Ra3 $18) 22. Bxe4 {[%emt 0:00:03]} f5 {[%emt 0:00:04]} (22... Rxe4 $11 23. Qxe4 Qxc3) 23. Bd3 {[%emt 0:00:36]} c4 $1 {[%emt 0:00:32]} 24. Bxf5 {[%emt 0:03:46]} (24. Bxc4 {simplifies} Rbc8 25. Be2 Qxc3 26. Qxc3 Rxc3 27. Bh5) 24... Bxf5 {[%emt 0:00:16]} 25. Qxf5 {[%emt 0:00:04]} Qxc3 {[%emt 0:01:01]} 26. Ra3 {[%emt 0:00:33]} Qf6 {[%emt 0:00:32]} 27. Qc2 {[%emt 0:00:55]} Rb4 {[%emt 0:03:47]} ({Black should play} 27... Ne7 $11) 28. Rc3 {[%emt 0:00:39]} Rc8 {[%emt 0:02:36]} (28... Re2 29. Qxe2 Qxc3 30. Qe6+ Kh7 31. f5 Qe5+ 32. Kg1 $16) 29. Re1 {[%emt 0:00:31] [#] Hoping for Re6.} Ne7 {[%emt 0:04:58]} 30. Ba3 {[%emt 0:00:22]} (30. Re4 {simplifies} Nf5 31. Rcxc4 Rcxc4 32. Rxc4 Rxc4 33. Qxc4 Ng3 34. Ba3) 30... Rb3 {[%emt 0:06:05]} 31. Rxb3 {[%emt 0:00:28]} cxb3 {[%emt 0:00:02]} 32. Qxb3 {[%emt 0:00:28]} Qxf4+ {[%emt 0:00:07]} 33. Kg1 $1 {[%emt 0:00:34]} (33. Kh1 Nf5 34. Qb4 Qf2 $19) 33... Nf5 {[%emt 0:00:23]} 34. Qd3 {[%emt 0:00:32]} Ng3 {[%emt 0:00:34]} 35. Qg6 {[%emt 0:00:32] Threatens to win with Qe6+.} Rf8 {[%emt 0:02:17][%cal Of4f1] ( -> ...Qf1+!)} (35... Qxa4 $2 36. Qe6+ (36. Bxd6 Qd4+ 37. Kh2 Qf6 $16) 36... Kh7 37. Qxc8 $18) 36. Qd3 {[%emt 0:01:14][%mdl 8192] [#] Inhibits Qf1+.} (36. Bxd6 Qf2+ 37. Kh2 Qxe1 $19) (36. Qe6+ $11 Kh7 37. Bxd6 Qf2+ 38. Kh2) 36... Rc8 $2 {[%emt 0:07:25]} ({Not} 36... Qxa4 37. Bxd6 Qa5 38. Rc1 $14) (36... Qf2+ {mates} 37. Kh2 Qxe1 38. Qb1 Qxb1 39. Bc1 Qxc1 40. a5 Qh1#) 37. Qf3 {[%emt 0:00:30]} Qd4+ {[%emt 0:00:30][%mdl 32768] Weighted Error Value: White=0.22 (precise) /Black=0.28 (precise) . Loss on time!?} 0-1

[Event "US Masters 2022"]
[Site "Charlotte"]
[Date "2022.11.26"]
[Round "5.1"]
[White "Naroditsky, Daniel"]
[Black "Cordova, Emilio"]
[Result "1/2-1/2"]
[ECO "B30"]
[WhiteElo "2617"]
[BlackElo "2561"]
[Annotator "TA"]
[PlyCount "41"]
[EventDate "2022.11.23"]
[EventType "swiss"]
[EventCountry "USA"]
[SourceTitle "playchess.com"]
[Source "ChessBase"]
[SourceQuality "1"]
[TimeControl "5400+30"]

{[%evp 11,41,26,33,31,36,36,29,36,37,0,-7,0,110,111,98,98,149,152,154,112,114,120,118,0,0,0,0,0,0,0,0,-216]} 1. e4 {[%emt 0:00:02]} c5 {[%emt 0:04:45]} 2. Nf3 {[%emt 0:00:09]} Nc6 {[%emt 0:00:46]} 3. Bb5 {[%emt 0:00:21]} e6 {[%emt 0:01:04]} 4. O-O {[%emt 0:00:49]} Nge7 {[%emt 0:00:14]} 5. d4 {[%emt 0:00:40]} cxd4 {[%emt 0:00:08]} 6. Nxd4 {[%emt 0:00:04]} Qb6 {[%emt 0:01:15] 6...Qb6 was played by the boomers.} 7. Nxc6 {[%emt 0:00:48] B30: Sicilian: 2...Nc6 3 Bb5, lines without ...g6.} dxc6 {[%emt 0:01:19]} 8. Bc4 {[%emt 0:01:26]} Ng6 {[%emt 0:01:26]} 9. Kh1 {[%emt 0:02:49] White has an edge.} e5 {[%emt 0:20:59] [#]} 10. f4 $146 {[%emt 0:03:33]} (10. a4 {simplifies} Be7 11. c3 Qc7 12. Be3) ({Predecessor:} 10. Qf3 Qc7 11. Rd1 Nf4 12. Bxf4 exf4 13. e5 Qxe5 14. Qb3 Be7 15. Bxf7+ Kf8 16. Nd2 {½-½ (35) Nataf,I (2483)-Strautins,V (2521) ICCF email 2015}) 10... exf4 {[%emt 0:00:06]} 11. Bxf4 {[%emt 0:00:09]} Be6 {[%emt 0:00:04]} (11... Nxf4 $11 12. Rxf4 Be6 13. Bxe6 fxe6) 12. Bxe6 $16 {[%emt 0:00:39]} fxe6 {[%emt 0:00:05] [#]} 13. Bg3 {[%emt 0:05:26]} Be7 {[%emt 0:06:05]} (13... e5 $142) 14. Qg4 {[%emt 0:17:59] Black must now prevent Na3.} Rf8 {[%emt 0:29:42][%cal Rf8f1]} 15. Nd2 {[%emt 0:18:28] Nc4 is the strong threat.} Rxf1+ {[%emt 0:18:03]} 16. Rxf1 {[%emt 0:00:13]} Qd4 {[%emt 0:01:43]} 17. Qxe6 {[%emt 0:07:16]} Qxd2 $11 {[%emt 0:00:03] The position is equal.} 18. Qg8+ {[%emt 0:00:34]} Nf8 {[%emt 0:00:41] [#] And now ...0-0-0 would win.} 19. Qxg7 {[%emt 0:00:28][%cal Og3h4]} Qe2 {[%emt 0:03:25][%cal Re2f1]} 20. Qf7+ {[%emt 0:08:24]} Kd7 $1 {[%emt 0:00:05] Hoping for ...Ne6.} 21. Bh4 $2 {[%emt 0:01:55] Weighted Error Value: White=0.19 (very precise) /Black=0.17 (very precise)} (21. Rf2 $11 {and White stays safe.} Qd1+ 22. Rf1 Qxc2 23. Qh5) 1/2-1/2

[Event "US Masters 2022"]
[Site "Charlotte"]
[Date "2022.11.26"]
[Round "5.3"]
[White "Ramirez, Alejandro"]
[Black "Budisavljevic, Luka"]
[Result "1-0"]
[ECO "A13"]
[WhiteElo "2561"]
[BlackElo "2505"]
[Annotator "TA"]
[PlyCount "115"]
[EventDate "2022.11.23"]
[EventType "swiss"]
[EventCountry "USA"]
[SourceTitle "playchess.com"]
[Source "ChessBase"]
[SourceQuality "1"]
[TimeControl "5400+30"]

{[%evp 16,115,-25,-9,-19,-25,0,0,4,-21,-19,-18,0,-8,-8,-48,-25,-16,-20,-34,-19,-38,-19,-36,-29,-51,-31,-37,-35,-37,-24,-39,-31,-64,-64,-69,-70,-85,0,-22,0,-72,-35,-24,0,0,45,46,49,68,53,47,64,64,180,165,147,161,160,150,191,184,175,155,175,152,168,138,177,113,329,310,522,522,507,505,518,410,480,465,539,509,831,819,759,680,1411,922,918,880,790,767,1687,1413,29990,29991,29992,29993,29993,29994,29996,29997]} 1. Nf3 {[%emt 0:00:06]} d5 {[%emt 0:07:20]} 2. c4 {[%emt 0:03:29]} e6 {[%emt 0:00:15]} 3. b3 {[%emt 0:00:04]} d4 {[%emt 0:00:24]} 4. g3 {[%emt 0:00:30]} c5 {[%emt 0:00:08]} 5. e3 {[%emt 0:00:16]} Nc6 {[%emt 0:00:06]} 6. exd4 {[%emt 0:00:06]} cxd4 {[%emt 0:00:05]} 7. Bg2 {[%emt 0:00:06]} Nf6 {[%emt 0:00:16]} 8. O-O {[%emt 0:00:05]} Bd6 {[%emt 0:00:36]} 9. d3 {[%emt 0:06:22]} O-O {[%emt 0:00:09] A13: English Opening: 1...e6.} 10. Re1 {[%emt 0:00:02] 10.Bg5 is the modern continuation.} h6 {[%emt 0:00:12]} 11. Ba3 {[%emt 0:00:36]} e5 {[%emt 0:00:09] The position is equal.} 12. c5 $5 {[%emt 0:02:51][%mdl 4] Exploring less charted territory.} Bc7 {[%emt 0:00:30]} 13. Nbd2 {[%emt 0:00:05] [#]} Bf5 $146 {[%emt 0:05:32]} ({Predecessor:} 13... Re8 14. b4 a6 15. Nc4 Bf5 16. Nh4 Bh7 17. Bh3 e4 18. Nf5 Ne5 19. Nxe5 Rxe5 20. dxe4 Nxe4 {0-1 (36) Chmiel,M (2232)-Pacan Milej,K (2401) Szklarska Poreba 2021}) 14. Nc4 {[%emt 0:01:16]} Re8 {[%emt 0:00:51]} 15. Rc1 {[%emt 0:05:59]} (15. b4 $5 {[%cal Rb4b5]}) 15... Qd7 {[%emt 0:04:50]} 16. b4 {[%emt 0:03:17] [#] Strongly threatening b5.} a6 {[%emt 0:02:25]} 17. Qb3 {[%emt 0:04:57]} Rad8 {[%emt 0:13:35]} 18. Nfd2 {[%emt 0:00:42]} Bh3 {[%emt 0:01:15]} 19. Bh1 {[%emt 0:02:01]} (19. Bb2 {is interesting.} Nd5 20. Bxh3 Qxh3 21. Nd6) 19... Be6 {[%emt 0:02:23]} 20. Bb2 {[%emt 0:09:18]} Nd5 {[%emt 0:08:44]} (20... Nh7 $5 {[%cal Rh7g5]}) 21. a3 {[%emt 0:03:19]} f5 {[%emt 0:01:47]} 22. Qd1 {[%emt 0:01:36]} Bf7 {[%emt 0:03:14]} 23. Bg2 {[%emt 0:00:17]} Nf6 {[%emt 0:03:36]} 24. Bh3 {[%emt 0:09:15][%cal Od2e4]} Be6 {[%emt 0:02:50]} 25. Bg2 {[%emt 0:00:04]} Bd5 {[%emt 0:01:41]} 26. Bh3 {[%emt 0:01:56][%cal Od2e4]} Be6 {[%emt 0:00:47]} (26... Rf8 $17) 27. Bg2 $11 {[%emt 0:00:05]} Bd5 {[%emt 0:00:31]} (27... Nh7 $11) 28. Bh3 $1 $17 {[%emt 0:00:04][%cal Od2e4]} g5 {[%emt 0:09:02]} (28... Nh7 $5) 29. Ne4 $1 {[%emt 0:01:28]} Nxe4 {[%emt 0:00:43]} 30. dxe4 {[%emt 0:00:54]} Bxc4 {[%emt 0:00:16]} 31. Rxc4 {[%emt 0:00:04][%cal Bc1c4,Bc4a4,Ba4a7][%mdl 32]} g4 {[%emt 0:00:04]} 32. Bf1 {[%emt 0:01:16]} f4 {[%emt 0:00:39]} 33. a4 {[%emt 0:02:19][%cal Ba3a4,Ba4b5][%mdl 32]} f3 {[%emt 0:02:06]} 34. b5 {[%emt 0:03:57]} axb5 {[%emt 0:01:59]} ({Black should try} 34... Na5 $1 $14) 35. axb5 $18 {[%emt 0:00:02]} Ne7 {[%emt 0:00:50]} 36. Ra4 {[%emt 0:07:50]} Kg7 {[%emt 0:02:09]} 37. Ra7 {[%emt 0:02:55]} Qc8 {[%emt 0:01:29] [#]} 38. Ba3 $1 {[%emt 0:08:56][%cal Bb2a3,Ba3b4,Bb4d2,Bd2c1][%mdl 32]} Bb8 {[%emt 0:00:02]} 39. Ra8 {[%emt 0:00:12]} Qe6 {[%emt 0:00:42] Against Qb3} 40. Qd2 {[%emt 0:00:29]} Rc8 {[%emt 0:09:57]} 41. Bb4 {[%emt 0:03:44]} Ng6 {[%emt 0:00:42]} 42. Qa2 {[%emt 0:00:38]} ({Better is} 42. h3 $18) 42... Qe7 $2 {[%emt 0:03:20] A mistake that costs the game.} (42... Qxa2 $16 43. Rxa2 Nf8) 43. Rb1 {[%emt 0:01:53]} h5 $2 {[%emt 0:04:54]} (43... Rxc5 {was worth a try.} 44. Qa3 (44. Bxc5 Qxc5 45. b6 Nf8 $18) 44... b6 45. Bxc5 bxc5) 44. c6 {[%emt 0:00:59]} Qc7 {[%emt 0:01:46]} 45. h4 {[%emt 0:04:02]} b6 {[%emt 0:01:54]} 46. Bd2 {[%emt 0:01:08]} Nf8 {[%emt 0:01:26]} 47. Bc4 {[%emt 0:00:36] Inhibits Ne6.} Nh7 {[%emt 0:00:46]} 48. Bc1 {[%emt 0:00:29] And now Qd2 would win.} Qe7 {[%emt 0:01:15]} (48... Kh8 $142 49. Bf7 Rf8) 49. Qd2 {[%emt 0:01:12]} Qd6 {[%emt 0:00:22] Against Qh6+} 50. Rba1 {[%emt 0:00:33][%cal Bb1a1,Ba1a6,Ba6a7,Ba7c7][%mdl 32]} Qg6 {[%emt 0:00:51]} 51. R1a6 {[%emt 0:02:35]} Bc7 {[%emt 0:00:46]} 52. Rxc8 {[%emt 0:00:02]} Rxc8 {[%emt 0:00:04]} 53. Ra7 {[%emt 0:00:12] Threatens to win with Qa2.} Kh8 {[%emt 0:00:55]} 54. Qh6 {[%emt 0:02:31]} Qxe4 {[%emt 0:01:10]} 55. Qe6 {[%emt 0:00:33] White mates.} Rf8 {[%emt 0:02:56]} 56. Rxc7 {[%emt 0:00:23]} Qe1+ {[%emt 0:00:07]} 57. Bf1 {[%emt 0:00:05]} Qxc1 {[%emt 0:00:06]} 58. Qg6 {[%emt 0:00:20] Weighted Error Value: White=0.11 (very precise) /Black=0.40} 1-0